{"text_format":"3","workbook":"xlsx","n_sheets":2,"sheets":["Zoznam učiteľa"," Údaje zoznamu"],"not_rendered":{"defined_names":6},"read":"whole","date_system":"1900"}

{"sheet":"Zoznam učiteľa","index":0,"n_rows":10,"n_cols":10,"rows_kept":10,"merged":[[0,1,0,2],[0,4,0,8],[2,9,6,9]]}
[null,"Zoznam učiteľa",null,"Údaje zoznamu","Legenda farieb stavu v tejto bunke: Nezačaté má normálny štýl, Prebieha má R = 91 G = 133 B = 49, Termín dnes má R = 118 G = 88 B = 0, Podržané má R = 109 G = 66 B = 111, Dokončené je prečiarknuté, Zrušené je R = 191 G = 191 B = 191 a Po termíne má R = 191 G = 33 B = 28."]
[null,"POLOŽKA","KATEGÓRIA","DÁTUM ZAČATIA","TERMÍN DOKONČENIA","ZOSTÁVAJÚCE DNI","STAV","POZNÁMKY"]
[null,"Vyčistiť zásuvky","Kancelária",{"$f":"DATE(YEAR(TODAY()),MONTH(TODAY())-1,6)","v":"2018-04-06"},{"$f":"DATE(YEAR(TODAY()),MONTH(TODAY())-1,16)","v":"2018-04-16"},{"$f":"IFERROR(IF(COUNT(Zoznam[[#This Row],[DÁTUM ZAČATIA]]:Zoznam[[#This Row],[TERMÍN DOKONČENIA]])<>2,\"\",IF(OR(Zoznam[[#This Row],[STAV]]=\"Dokončené\",Zoznam[[#This Row],[STAV]]=\"Zrušené\",Zoznam[[#This Row],[STAV]]=\"Podržané\"),\"\",Zoznam[[#This Row],[TERMÍN DOKONČENIA]]-TODAY())),\"\")","v":""},"Dokončené",null,null,"Rýchly filter stavu sa nachádza v tejto bunke. Ak chcete filtrovať zoznam podľa stavu, vyberte stav z rýchleho filtra. Stlačte a podržte kláves CTRL a vyberte viacero možností."]
[null,"Objednať nálepky","Zásoby",{"$f":"DATE(YEAR(TODAY()),MONTH(TODAY())-1,11)","v":"2018-04-11"},{"$f":"DATE(YEAR(TODAY()),MONTH(TODAY())-1,21)","v":"2018-04-21"},{"$f":"IFERROR(IF(COUNT(Zoznam[[#This Row],[DÁTUM ZAČATIA]]:Zoznam[[#This Row],[TERMÍN DOKONČENIA]])<>2,\"\",IF(OR(Zoznam[[#This Row],[STAV]]=\"Dokončené\",Zoznam[[#This Row],[STAV]]=\"Zrušené\",Zoznam[[#This Row],[STAV]]=\"Podržané\"),\"\",Zoznam[[#This Row],[TERMÍN DOKONČENIA]]-TODAY())),\"\")","v":""},"Dokončené"]
[null,"Podlaha utretá a navoskovaná","Iné",{"$f":"DATE(YEAR(TODAY()),MONTH(TODAY()-1),DAY(TODAY())-25)","v":"2018-04-15"},{"$f":"DATE(YEAR(TODAY()),MONTH(TODAY())-1,26)","v":"2018-04-26"},{"$f":"IFERROR(IF(COUNT(Zoznam[[#This Row],[DÁTUM ZAČATIA]]:Zoznam[[#This Row],[TERMÍN DOKONČENIA]])<>2,\"\",IF(OR(Zoznam[[#This Row],[STAV]]=\"Dokončené\",Zoznam[[#This Row],[STAV]]=\"Zrušené\",Zoznam[[#This Row],[STAV]]=\"Podržané\"),\"\",Zoznam[[#This Row],[TERMÍN DOKONČENIA]]-TODAY())),\"\")","v":""},"Dokončené"]
[null,"Menovky vytvorené","Zásoby",{"$f":"DATE(YEAR(TODAY()),MONTH(TODAY())-1,21)","v":"2018-04-21"},{"$f":"DATE(YEAR(TODAY()),MONTH(TODAY())-1,1)","v":"2018-04-01"},{"$f":"IFERROR(IF(COUNT(Zoznam[[#This Row],[DÁTUM ZAČATIA]]:Zoznam[[#This Row],[TERMÍN DOKONČENIA]])<>2,\"\",IF(OR(Zoznam[[#This Row],[STAV]]=\"Dokončené\",Zoznam[[#This Row],[STAV]]=\"Zrušené\",Zoznam[[#This Row],[STAV]]=\"Podržané\"),\"\",Zoznam[[#This Row],[TERMÍN DOKONČENIA]]-TODAY())),\"\")","v":""},"Podržané"]
[null,"Písomné hodnotenie za štvrťrok","Hodnotenia",{"$f":"DATE(YEAR(TODAY()),MONTH(TODAY())-1,26)","v":"2018-04-26"},{"$f":"TODAY()-5","v":"2018-05-05"},{"$f":"IFERROR(IF(COUNT(Zoznam[[#This Row],[DÁTUM ZAČATIA]]:Zoznam[[#This Row],[TERMÍN DOKONČENIA]])<>2,\"\",IF(OR(Zoznam[[#This Row],[STAV]]=\"Dokončené\",Zoznam[[#This Row],[STAV]]=\"Zrušené\",Zoznam[[#This Row],[STAV]]=\"Podržané\"),\"\",Zoznam[[#This Row],[TERMÍN DOKONČENIA]]-TODAY())),\"\")","v":-5},"Po termíne"]
[null,"E-mailové pripomenutie na ospravedlnenky","Telefónne hovory",{"$f":"DATE(YEAR(TODAY()),MONTH(TODAY()),1)","v":"2018-05-01"},{"$f":"TODAY()","v":"2018-05-10"},{"$f":"IFERROR(IF(COUNT(Zoznam[[#This Row],[DÁTUM ZAČATIA]]:Zoznam[[#This Row],[TERMÍN DOKONČENIA]])<>2,\"\",IF(OR(Zoznam[[#This Row],[STAV]]=\"Dokončené\",Zoznam[[#This Row],[STAV]]=\"Zrušené\",Zoznam[[#This Row],[STAV]]=\"Podržané\"),\"\",Zoznam[[#This Row],[TERMÍN DOKONČENIA]]-TODAY())),\"\")","v":""},"Zrušené"]
[null,"Správy o ústnom hodnotení","Kancelária",{"$f":"DATE(YEAR(TODAY()),MONTH(TODAY()),7)","v":"2018-05-07"},{"$f":"DATE(YEAR(TODAY()),MONTH(TODAY()),17)","v":"2018-05-17"},{"$f":"IFERROR(IF(COUNT(Zoznam[[#This Row],[DÁTUM ZAČATIA]]:Zoznam[[#This Row],[TERMÍN DOKONČENIA]])<>2,\"\",IF(OR(Zoznam[[#This Row],[STAV]]=\"Dokončené\",Zoznam[[#This Row],[STAV]]=\"Zrušené\",Zoznam[[#This Row],[STAV]]=\"Podržané\"),\"\",Zoznam[[#This Row],[TERMÍN DOKONČENIA]]-TODAY())),\"\")","v":7},"Prebieha"]
[null,"Zastrúhať ceruzky","Zásoby",{"$f":"DATE(YEAR(TODAY()),MONTH(TODAY()),11)","v":"2018-05-11"},{"$f":"DATE(YEAR(TODAY()),MONTH(TODAY()),10)","v":"2018-05-10"},{"$f":"IFERROR(IF(COUNT(Zoznam[[#This Row],[DÁTUM ZAČATIA]]:Zoznam[[#This Row],[TERMÍN DOKONČENIA]])<>2,\"\",IF(OR(Zoznam[[#This Row],[STAV]]=\"Dokončené\",Zoznam[[#This Row],[STAV]]=\"Zrušené\",Zoznam[[#This Row],[STAV]]=\"Podržané\"),\"\",Zoznam[[#This Row],[TERMÍN DOKONČENIA]]-TODAY())),\"\")","v":0},"Prebieha"]

{"sheet":" Údaje zoznamu","index":1,"n_rows":13,"n_cols":3,"rows_kept":13}
[null,"Údaje zoznamu","Zoznam učiteľa"]
[null,"Kategória"]
[null,"Kancelária"]
[null,"Zásoby"]
[null,"Čo treba kúpiť"]
[null,"Telefónne hovory"]
[null,"Nové nápady"]
[null,"Hodnotenia"]
[null,"Tím"]
[null,"Opatrenia"]
[null,"Počítač"]
[null,"Osobné"]
[null,"Iné"]